bitfinex/quotes_SOLUSD_20230111
["timestamp","ask_amount","ask_price","bid_price","bid_amount"]
[1673451749404,48.37,15.509,15.487,1.92]
[1673451749603,48.38,15.506,15.487,1.92]
[1673451749808,48.37,15.509,15.487,15.65499676]
[1673451750033,48.38,15.505,15.488,113.6167]
[1673451750227,48.37,15.508,15.489,21.92]
[1673451750441,48.38,15.504,15.489,21.92]
[1673451750663,132.97,15.51,15.489,21.92]
[1673451750664,48.37,15.507,15.489,21.92]
[1673451750856,48.39,15.503,15.489,21.92]
[1673451751067,48.37,15.509,15.489,35.65499676]
[1673451751501,20.0,15.508,15.489,35.65499676]
[1673451752036,48.37,15.507,15.489,35.65499676]
[1673451752982,48.37,15.507,15.489,21.92]
[1673451754123,48.37,15.507,15.49,13.73499676]
[1673451754338,48.37,15.507,15.491,21.92]
[1673451755505,26.74,15.51,15.492,34.73499676]
[1673451755689,26.74,15.51,15.494,1.0]
[1673451755901,48.37,15.509,15.493,1.0]
[1673451756245,68.37,15.509,15.493,1.0]
[1673451756952,68.37,15.509,15.492,118.0331]
[1673451757162,68.37,15.509,15.493,38.92]
[1673451757602,68.37,15.509,15.494,20.0]
[1673451757795,68.37,15.509,15.491,20.0]
[1673451757796,0.96,15.508,15.491,20.0]
[1673451758126,20.0,15.508,15.491,20.0]
[1673451758443,48.37,15.507,15.491,20.0]
[1673451758753,48.37,15.507,15.489,20.0]
[1673451758945,0.96,15.506,15.489,20.0]
[1673451759162,48.38,15.506,15.489,20.0]
[1673451759375,1.92,15.505,15.489,20.0]
[1673451759597,49.34,15.505,15.489,20.0]
[1673451759798,0.96,15.504,15.489,20.0]
[1673451760011,28.4,15.5,15.489,20.0]
[1673451761793,28.4,15.5,15.49,0.96]
[1673451762003,28.4,15.5,15.49,1.92]
[1673451762837,28.4,15.5,15.489,20.0]
[1673451763053,28.4,15.5,15.488,20.0]
[1673451763268,28.4,15.5,15.487,20.0]
[1673451764018,28.4,15.5,15.483,138.6331]
[1673451764019,142.26,15.5,15.473,48.48]
[1673451764328,28.4,15.49,15.474,138.6331]
[1673451764938,28.4,15.49,15.475,20.0]
[1673451765273,28.4,15.49,15.474,118.6331]
[1673451765487,28.4,15.49,15.475,20.0]
[1673451766513,28.4,15.49,15.475,33.73499676]
[1673451766741,28.4,15.49,15.476,13.73499676]
[1673451766948,28.4,15.49,15.477,20.0]
[1673451768720,48.41,15.495,15.478,28.42999352]
[1673451768935,48.4,15.498,15.479,20.0]
[1673451769168,20.0,15.497,15.48,0.96]
[1673451769364,20.0,15.497,15.481,0.96]
[1673451769581,48.41,15.496,15.482,0.96]
[1673451769892,48.41,15.496,15.483,0.96]
[1673451770315,48.41,15.496,15.484,0.96]
[1673451770736,20.0,15.497,15.484,0.96]
[1673451771262,20.0,15.497,15.485,0.96]
[1673451771668,48.4,15.498,15.485,0.96]
[1673451771874,28.44,15.5,15.486,14.69499676]
[1673451772296,28.44,15.5,15.487,0.96]
[1673451772713,28.44,15.5,15.488,14.69499676]
[1673451772944,28.44,15.5,15.489,0.96]
[1673451773152,28.44,15.5,15.49,0.96]
[1673451773362,28.44,15.5,15.491,0.96]
[1673451773575,28.44,15.5,15.49,13.73499676]
[1673451773799,28.44,15.5,15.483,68.45]
[1673451773986,28.44,15.5,15.485,20.0]
[1673451774316,28.44,15.5,15.486,1.92]
[1673451774526,28.44,15.5,15.486,15.65499676]
[1673451774841,28.44,15.5,15.487,27.46999352]
[1673451775064,28.44,15.5,15.488,21.92]
[1673451777133,28.44,15.5,15.488,20.0]
[1673451777346,28.44,15.5,15.485,33.73499676]
[1673451777771,28.18,15.5,15.485,33.73499676]
[1673451779044,28.18,15.5,15.486,1.92]
[1673451779677,28.18,15.5,15.486,15.65499676]
[1673451779889,48.38,15.505,15.487,20.0]
[1673451780201,67.52496728,15.506,15.488,1.92]
[1673451780410,48.38,15.504,15.488,114.5031]
[1673451780605,48.38,15.505,15.488,114.5031]
[1673451780820,48.39,15.503,15.489,20.0]
[1673451781148,48.38,15.504,15.49,1.92]
[1673451781359,48.38,15.505,15.49,1.92]
[1673451781969,48.37,15.508,15.49,1.92]
[1673451782180,20.0,15.507,15.49,1.92]
[1673451782391,28.24,15.5,15.489,20.0]
[1673451784599,28.24,15.5,15.483,20.0]
[1673451784600,40.0,15.499,15.483,20.0]
[1673451784815,88.4,15.499,15.483,20.0]
[1673451785037,107.54496728,15.499,15.483,20.0]
[1673451786076,107.54496728,15.499,15.482,118.3128]
[1673451786294,28.18,15.49,15.467,6.93245]
[1673451786510,28.18,15.49,15.476,116.8899]
[1673451786927,28.18,15.49,15.471,48.49]
[1673451786928,141.58,15.49,15.471,48.49]
[1673451787143,28.23,15.48,15.465,68.51]
[1673451787337,142.13,15.48,15.465,20.0]
[1673451787553,161.27496728,15.48,15.465,20.0]
[1673451787970,28.24,15.47,15.462,20.0]
[1673451788182,28.24,15.47,15.456,111.8561]
[1673451789547,28.24,15.47,15.457,20.0]
[1673451790401,28.24,15.47,15.456,111.8561]
[1673451790608,141.64,15.47,15.453,20.0]
[1673451790816,141.64,15.47,15.449,48.56]
[1673451790817,20.96,15.469,15.449,48.56]
[1673451791022,20.96,15.469,15.441,186.3216]
[1673451791023,28.23,15.46,15.441,186.3216]
[1673451793781,28.23,15.46,15.442,0.96]
[1673451793963,28.23,15.46,15.442,1.92]
[1673451794177,28.23,15.46,15.443,33.6]
[1673451794387,28.23,15.46,15.444,18.92]
[1673451794617,28.23,15.46,15.445,20.0]
[1673451794812,28.23,15.46,15.446,1.92]
[1673451795236,28.23,15.46,15.446,18.92]
[1673451795857,28.23,15.46,15.443,20.0]
[1673451795858,141.91,15.46,15.443,20.0]
[1673451796072,141.77,15.46,15.441,117.7416]
[1673451796288,70.44,15.459,15.441,117.7416]
[1673451796512,89.58496728,15.459,15.441,117.7416]
[1673451796720,20.0,15.458,15.441,117.7416]
[1673451796933,20.0,15.457,15.441,117.7416]
[1673451797129,68.53,15.457,15.436,38.06]
[1673451797457,68.53,15.457,15.437,116.8924]
[1673451797458,87.67496728,15.457,15.437,116.8924]
[1673451797650,28.23,15.45,15.437,116.8924]
[1673451799224,28.23,15.45,15.438,1.92]
[1673451799646,28.23,15.45,15.438,21.92]
[1673451800063,28.23,15.45,15.438,20.0]
[1673451800610,28.23,15.45,15.439,14.26522399]
[1673451800796,28.23,15.45,15.437,116.8924]
[1673451801421,28.23,15.45,15.438,1.92]
[1673451801847,28.23,15.45,15.437,116.8924]
[1673451802584,28.23,15.45,15.426,32.24]
[1673451802585,68.56,15.449,15.426,32.24]
[1673451802905,28.23,15.44,15.426,110.7535]
[1673451803547,28.23,15.44,15.427,20.0]
[1673451804160,28.23,15.44,15.426,110.7535]
[1673451805862,28.23,15.44,15.421,27.72]
[1673451806174,28.23,15.44,15.423,20.0]
[1673451806787,28.23,15.44,15.424,20.0]
[1673451807230,20.0,15.439,15.422,114.483]
[1673451807419,68.59,15.439,15.422,114.483]
[1673451807840,68.59,15.439,15.422,128.74822399]
[1673451808067,68.59,15.439,15.423,20.0]
[1673451808264,68.59,15.439,15.422,128.74822399]
[1673451808488,20.0,15.438,15.422,114.483]
[1673451808688,68.59,15.438,15.422,114.483]
[1673451809104,68.59,15.439,15.422,114.483]
[1673451809429,20.0,15.438,15.422,114.483]
[1673451810035,28.18,15.43,15.422,114.483]
[1673451810247,28.18,15.43,15.418,14.26522399]
[1673451810464,28.18,15.43,15.417,11.98]
[1673451810685,28.18,15.43,15.415,122.08]
[1673451810903,28.18,15.43,15.415,110.52]
[1673451811093,28.18,15.43,15.415,121.76]
[1673451811531,20.0,15.439,15.417,20.0]
[1673451811770,28.23,15.43,15.416,10.38]
[1673451811947,28.23,15.43,15.417,14.26522399]
[1673451812157,28.23,15.43,15.416,30.38]
[1673451813000,28.23,15.43,15.417,14.26522399]
[1673451813425,48.59,15.439,15.417,14.26522399]
[1673451813663,142.33,15.44,15.417,14.26522399]
[1673451813664,20.0,15.438,15.418,34.73]
[1673451813846,20.0,15.438,15.419,17.0]
[1673451814057,20.0,15.438,15.42,1.92]
[1673451814285,20.0,15.438,15.42,16.18522399]
[1673451814699,28.18,15.43,15.418,20.0]
[1673451815750,28.18,15.43,15.416,20.0]
[1673451815966,142.08,15.43,15.412,119.943]
[1673451816175,20.0,15.429,15.412,119.943]
[1673451816489,28.59,15.43,15.414,19.81]
[1673451816699,28.59,15.43,15.415,20.0]
[1673451817018,48.6,15.435,15.415,34.26522399]
[1673451817226,48.59,15.438,15.416,131.5223]
[1673451817412,48.59,15.438,15.417,20.0]
[1673451817626,48.59,15.438,15.418,1.92]
[1673451817857,48.59,15.438,15.419,20.0]
[1673451818073,48.59,15.438,15.42,1.92]
[1673451818263,20.0,15.437,15.42,1.92]
[1673451818469,48.59,15.438,15.42,1.92]
[1673451818682,48.59,15.439,15.42,16.18522399]
[1673451819095,48.59,15.439,15.421,20.0]
[1673451819431,48.57,15.444,15.422,33.18522399]
[1673451819743,48.56,15.447,15.423,54.26522399]
[1673451819952,48.56,15.449,15.425,1.43917353]
[1673451820166,141.92,15.44,15.424,17.0]
[1673451820356,142.14,15.44,15.425,1.92]
[1673451820572,48.59,15.439,15.419,20.0]
[1673451820783,48.59,15.439,15.414,34.79]
[1673451820784,28.18,15.43,15.414,34.79]
[1673451821002,28.18,15.43,15.412,55.23]
[1673451821316,28.18,15.43,15.414,20.0]
[1673451821519,28.18,15.43,15.414,135.9102]
[1673451821942,28.18,15.43,15.414,167.6902]
[1673451822154,28.18,15.43,15.414,135.9102]
[1673451824382,232.9793,15.44,15.417,34.26522399]
[1673451824383,48.59,15.438,15.417,34.26522399]
[1673451824594,48.59,15.439,15.418,32.68]
[1673451824801,20.0,15.438,15.418,46.94522399]
[1673451825136,20.0,15.438,15.419,20.0]
[1673451825351,48.59,15.437,15.421,20.0]
[1673451825660,142.27,15.44,15.422,0.96]
[1673451825862,68.59,15.439,15.422,0.96]
[1673451826071,68.59,15.439,15.422,1.92]
[1673451826273,68.59,15.439,15.422,0.96]
[1673451826485,68.59,15.439,15.423,0.96]
[1673451826694,68.59,15.439,15.424,0.96]
[1673451826905,68.59,15.439,15.419,20.0]
[1673451827109,68.59,15.439,15.413,60.15]
[1673451827110,28.42,15.43,15.413,60.15]
[1673451827332,28.42,15.43,15.416,128.8123]
[1673451827763,28.42,15.43,15.417,34.26522399]
[1673451828077,28.42,15.43,15.417,20.0]
[1673451828577,26.66,15.43,15.417,20.0]
[1673451828792,26.66,15.43,15.416,108.8123]
[1673451829221,26.66,15.43,15.417,20.0]
[1673451829844,26.66,15.43,15.416,108.8123]
[1673451830053,133.7,15.43,15.41,20.0]
[1673451830274,69.58,15.429,15.41,20.0]
[1673451830514,68.62,15.429,15.41,20.0]
[1673451830701,68.62,15.429,15.411,14.26522399]
[1673451832809,68.62,15.429,15.409,113.689]
[1673451833026,20.0,15.428,15.41,20.0]
[1673451833419,48.63,15.427,15.41,20.0]
[1673451833848,48.62,15.428,15.41,20.0]
[1673451834060,48.62,15.428,15.411,14.26522399]
[1673451834468,48.62,15.428,15.41,20.0]
[1673451834999,48.62,15.428,15.411,17.96]
[1673451835834,48.62,15.428,15.411,32.22522399]
[1673451836040,20.0,15.427,15.409,113.689]
[1673451836272,26.66,15.42,15.409,113.689]
[1673451837204,26.66,15.42,15.41,20.0]
[1673451837414,26.66,15.42,15.409,113.689]
[1673451837742,48.63,15.426,15.41,20.0]
[1673451838087,48.63,15.426,15.41,21.92]
[1673451838273,48.63,15.427,15.41,21.92]
[1673451838461,48.63,15.425,15.41,21.92]
[1673451838671,48.63,15.426,15.41,21.92]
[1673451838896,26.79,15.42,15.41,21.92]
[1673451839736,48.62,15.428,15.411,14.26522399]
[1673451840054,68.62,15.429,15.412,1.92]
[1673451840263,68.62,15.429,15.412,21.92]
[1673451840459,68.62,15.429,15.412,36.18522399]
[1673451841528,68.62,15.429,15.412,20.0]
[1673451842054,68.62,15.429,15.406,10.32455]
[1673451842263,26.58,15.42,15.406,25.01829302]
[1673451842577,26.58,15.42,15.406,10.32455]
[1673451842891,26.58,15.42,15.406,25.01829302]
[1673451843205,26.58,15.42,15.407,20.0]
[1673451843822,26.58,15.42,15.408,1.92]
[1673451845817,26.58,15.42,15.408,18.92]
[1673451846039,26.58,15.42,15.408,0.96]
[1673451846784,26.58,15.42,15.408,14.69374302]
[1673451846992,134.09,15.42,15.406,10.32455]
[1673451847307,88.65,15.419,15.406,10.32455]
[1673451848019,68.65,15.419,15.406,10.32455]
[1673451849082,20.96,15.418,15.406,10.32455]
[1673451849414,0.96,15.417,15.406,10.32455]
[1673451849600,0.96,15.416,15.406,10.32455]
[1673451849814,0.96,15.415,15.406,10.32455]
[1673451850015,0.96,15.414,15.406,10.32455]
[1673451850226,48.66,15.415,15.406,10.32455]
[1673451850875,48.66,15.417,15.406,10.32455]
[1673451851615,48.66,15.417,15.406,9.82455]
[1673451851810,48.65,15.418,15.406,9.82455]
[1673451852018,20.96,15.417,15.406,9.82455]
[1673451852655,49.62,15.416,15.406,9.82455]
[1673451852876,20.96,15.415,15.406,9.82455]
[1673451853590,20.96,15.415,15.406,5e-05]
[1673451854110,20.0,15.415,15.406,5e-05]
[1673451854742,0.96,15.414,15.406,5e-05]
[1673451854953,0.96,15.413,15.406,5e-05]
[1673451855183,68.77496728,15.413,15.406,5e-05]
[1673451855378,48.67,15.413,15.406,5e-05]
[1673451855920,39.14496728,15.413,15.406,5e-05]
[1673451856445,20.0,15.413,15.406,5e-05]
[1673451856642,39.14496728,15.413,15.406,5e-05]
[1673451856867,49.63,15.412,15.406,5e-05]
[1673451857080,20.0,15.411,15.406,5e-05]
[1673451857291,1.92,15.41,15.406,5e-05]
[1673451857615,183.83536576,15.41,15.406,5e-05]
[1673451857828,185.8662091,15.409,15.406,5e-05]
[1673451858038,20.0,15.407,15.406,5e-05]
[1673451858356,41.92,15.407,15.36,26.88]
[1673451858545,41.92,15.407,15.354,324.07768477]
[1673451858546,0.83624594,15.389,15.354,216.489727]
[1673451858759,0.06,15.401,15.36,227.5625]
[1673451858971,48.75,15.388,15.374,77.4730246]
[1673451859182,19.14496728,15.394,15.374,77.4730246]
[1673451859392,48.75,15.387,15.374,77.4730246]
[1673451859607,134.17,15.39,15.374,77.4730246]
[1673451859824,48.76,15.386,15.374,77.4730246]
[1673451860037,48.75,15.389,15.374,77.4730246]
[1673451860255,20.0,15.388,15.374,77.4730246]
[1673451860552,26.98,15.39,15.375,11.25]
[1673451860769,27.04,15.4,15.375,11.25]
[1673451860958,134.2,15.4,15.377,20.0]
[1673451861166,26.75,15.4,15.377,20.0]
[1673451861393,26.75,15.4,15.378,11.25]
[1673451861613,26.75,15.4,15.379,1.92]
[1673451861815,26.75,15.4,15.379,21.92]
[1673451862019,19.14496728,15.399,15.38,11.25]
[1673451862230,26.75,15.4,15.381,1.92]
[1673451862442,75.46,15.4,15.381,1.92]
[1673451862656,26.75,15.4,15.382,11.25]
[1673451862860,26.75,15.4,15.381,11.25]
[1673451863070,39.14496728,15.399,15.38,10.94]
[1673451863380,26.61,15.39,15.376,220.793]
[1673451864027,26.61,15.39,15.377,20.0]
[1673451864232,26.61,15.39,15.376,220.793]
[1673451864447,19.14496728,15.389,15.369,10.87]
[1673451864635,20.0,15.388,15.37,112.3017]
[1673451864852,20.0,15.388,15.371,20.0]
[1673451865060,48.75,15.387,15.371,20.0]
[1673451865290,67.89496728,15.387,15.371,20.0]
[1673451865498,19.14496728,15.386,15.371,20.0]
[1673451865712,26.79,15.38,15.37,112.3017]
[1673451866117,26.79,15.38,15.365,20.0]
[1673451866664,26.79,15.38,15.366,109.2628]
[1673451866848,19.14496728,15.379,15.363,20.0]
[1673451867055,20.0,15.379,15.363,20.0]
[1673451867692,19.14496728,15.378,15.363,20.0]
[1673451868119,20.0,15.388,15.363,20.0]
[1673451868330,69.81496728,15.387,15.364,11.32]
[1673451868740,38.28993456,15.386,15.364,11.32]
[1673451868951,26.79,15.38,15.365,20.0]
[1673451869380,26.79,15.38,15.366,11.27]
[1673451869789,26.79,15.38,15.375,20.0]
[1673451870002,134.21,15.39,15.375,20.0]
[1673451870210,20.0,15.389,15.376,17.0]
[1673451871264,27.05,15.39,15.377,0.96]
[1673451871474,27.05,15.39,15.377,13.18]
[1673451871686,19.14496728,15.395,15.377,13.18]
[1673451871896,48.71,15.399,15.379,20.0]
[1673451872116,48.71,15.399,15.38,1.92]
[1673451872525,133.75,15.4,15.38,12.9]
[1673451872733,26.59,15.4,15.381,37.0]
[1673451872961,26.59,15.4,15.382,21.92]
[1673451873175,26.59,15.4,15.383,20.0]
[1673451873382,26.59,15.4,15.384,115.0222]
[1673451873601,26.59,15.4,15.385,57.0]
[1673451873805,26.59,15.4,15.386,1.92]
[1673451874019,48.69,15.407,15.386,12.9]
[1673451874330,48.68,15.409,15.387,109.7791]
[1673451874547,19.14496728,15.406,15.389,20.0]
[1673451874738,48.68,15.409,15.389,20.0]
[1673451874950,48.68,15.409,15.39,18.92]
[1673451875166,20.0,15.408,15.39,18.92]
[1673451875384,20.0,15.408,15.391,10.71]
[1673451875618,20.0,15.409,15.392,1.92]
[1673451875803,19.14496728,15.407,15.391,10.71]
[1673451876119,133.81,15.42,15.393,36.23127407]
[1673451876312,26.61,15.43,15.395,2.79312074]
[1673451876527,64.53588795,15.427,15.397,2.79312074]
[1673451876851,64.53588795,15.427,15.398,1.92]
[1673451876852,71.47215795,15.427,15.398,1.92]
[1673451877049,94.71123728,15.426,15.399,2.79312074]
[1673451877260,133.72,15.42,15.4,1.92]
[1673451877467,26.84,15.42,15.4,1.92]
[1673451877698,26.84,15.42,15.4,4.71312074]
[1673451877888,26.84,15.42,15.4,23.41312074]
[1673451878093,26.84,15.42,15.401,17.0]
[1673451878309,26.84,15.42,15.402,24.71312074]
[1673451878632,48.65,15.419,15.402,24.71312074]
[1673451878837,26.84,15.42,15.403,17.0]
[1673451879159,48.63,15.425,15.405,2.79312074]
[1673451879160,67.77496728,15.425,15.405,2.79312074]
[1673451879475,19.14496728,15.425,15.407,2.79312074]
[1673451879671,19.14496728,15.425,15.407,20.0]
[1673451879880,19.14496728,15.425,15.409,2.79312074]
[1673451880117,26.79,15.43,15.408,18.92]
[1673451880118,48.62,15.428,15.411,2.79312074]
[1673451880304,48.62,15.429,15.412,1.92]
[1673451880513,48.62,15.429,15.413,2.79312074]
[1673451880729,20.0,15.428,15.413,2.79312074]
[1673451880957,39.14496728,15.428,15.415,2.79312074]
[1673451881156,48.62,15.429,15.415,2.79312074]
[1673451881363,19.14496728,15.427,15.417,2.79312074]
[1673451881566,26.79,15.43,15.417,2.79312074]
[1673451882296,26.79,15.43,15.419,2.79312074]
[1673451882501,26.79,15.43,15.414,2.79312074]
[1673451882717,20.0,15.428,15.411,2.79312074]
[1673451882925,67.76496728,15.429,15.411,2.79312074]
[1673451883158,67.77496728,15.427,15.411,2.79312074]
[1673451883373,48.62,15.428,15.411,2.79312074]
[1673451883563,26.63,15.43,15.413,20.0]
[1673451883887,48.63,15.427,15.411,2.79312074]
[1673451884099,67.76496728,15.429,15.413,2.79312074]
[1673451884307,20.0,15.428,15.415,2.79312074]
[1673451884523,20.0,15.428,15.417,2.79312074]
[1673451884715,133.89,15.43,15.415,2.79312074]
[1673451884921,48.6,15.435,15.419,2.79312074]
[1673451885132,19.14496728,15.436,15.42,0.96]
[1673451885355,48.6,15.434,15.418,2.79312074]
[1673451885573,19.14496728,15.435,15.42,2.79312074]
[1673451885574,67.74496728,15.435,15.42,2.79312074]
[1673451885783,19.14496728,15.435,15.421,0.96]
[1673451885997,48.6,15.434,15.422,2.79312074]
[1673451886207,48.59,15.438,15.424,2.79312074]
[1673451886520,48.59,15.439,15.422,2.79312074]
[1673451886726,48.59,15.437,15.423,1.92]
[1673451886934,48.59,15.438,15.424,2.79312074]
[1673451887152,48.58,15.442,15.424,2.79312074]
[1673451887346,19.14496728,15.442,15.425,114.234]
[1673451887556,67.72496728,15.441,15.426,22.79312074]
[1673451887781,67.72496728,15.441,15.427,1.92]
[1673451887980,134.13,15.45,15.428,2.79312074]
[1673451887981,48.56,15.449,15.428,2.79312074]
[1673451888403,48.56,15.449,15.429,1.92]
[1673451888610,48.56,15.449,15.43,2.79312074]
[1673451888823,48.56,15.449,15.431,1.92]
[1673451889032,48.56,15.449,15.432,2.79312074]
[1673451889457,48.56,15.449,15.433,1.92]
[1673451889783,20.0,15.448,15.434,2.79312074]
[1673451889971,20.0,15.447,15.432,2.79312074]
[1673451890181,20.0,15.447,15.433,1.92]
[1673451890182,48.56,15.447,15.433,1.92]
[1673451890409,68.56,15.448,15.434,2.79312074]
[1673451890637,20.0,15.448,15.434,2.79312074]
[1673451890827,20.0,15.448,15.435,1.92]
[1673451891146,26.97,15.45,15.436,2.79312074]
[1673451891147,68.56,15.449,15.436,2.79312074]
[1673451891344,68.56,15.449,15.438,2.79312074]
[1673451891976,68.56,15.449,15.432,2.79312074]
[1673451892386,48.56,15.449,15.432,2.79312074]
[1673451892598,20.0,15.458,15.432,2.79312074]
[1673451892599,48.54,15.455,15.433,35.25782182]
[1673451892830,48.53,15.457,15.434,20.0]
[1673451893141,48.54,15.454,15.435,22.79312074]
[1673451893330,48.53,15.456,15.437,2.79312074]
[1673451893543,20.0,15.458,15.439,2.79312074]
[1673451893544,48.54,15.453,15.439,2.79312074]
[1673451893774,48.54,15.455,15.439,2.79312074]
[1673451893984,20.0,15.458,15.439,2.79312074]
[1673451893985,48.55,15.452,15.439,19.79312074]
[1673451894306,20.0,15.458,15.439,2.79312074]
[1673451894307,20.0,15.453,15.439,2.79312074]
[1673451894491,48.55,15.451,15.437,2.79312074]
[1673451894701,48.55,15.452,15.436,2.79312074]
[1673451894912,26.79,15.45,15.436,2.79312074]
[1673451895138,48.55,15.451,15.436,2.79312074]
[1673451895350,48.54,15.453,15.436,2.79312074]
[1673451895546,19.14496728,15.455,15.436,2.79312074]
[1673451895547,48.54,15.454,15.436,2.79312074]
[1673451895759,20.0,15.458,15.436,2.79312074]
[1673451895760,48.55,15.452,15.436,2.79312074]
[1673451895973,19.14496728,15.452,15.436,2.79312074]
[1673451896182,48.55,15.451,15.436,2.79312074]
[1673451896393,48.55,15.451,15.432,117.1264]
[1673451896394,23.83,15.45,15.435,2.79312074]
[1673451896604,20.96,15.449,15.434,2.79312074]
[1673451896827,20.0,15.448,15.433,116.4669]
[1673451897237,48.56,15.447,15.433,116.4669]
[1673451897446,48.56,15.447,15.434,20.0]
[1673451897659,20.0,15.448,15.434,20.0]
[1673451897873,20.0,15.448,15.435,18.92]
[1673451898922,48.56,15.449,15.435,18.92]
[1673451899143,48.53,15.456,15.435,18.92]
[1673451899326,48.52,15.459,15.435,18.92]
[1673451899536,48.54,15.455,15.436,20.0]
[1673451899744,48.53,15.458,15.437,1.92]
[1673451899959,20.0,15.457,15.437,1.92]
[1673451900168,48.53,15.457,15.437,18.92]
[1673451900593,48.53,15.457,15.438,20.0]
[1673451900808,48.53,15.457,15.436,20.0]
[1673451901020,19.14496728,15.456,15.436,20.0]
[1673451901242,55.70347676,15.458,15.435,20.0]
[1673451901557,118.96,15.46,15.433,136.4669]
[1673451901558,23.84,15.45,15.433,116.4669]
[1673451901769,47.51,15.45,15.425,20.0]
[1673451902077,87.70496728,15.449,15.426,132.4213]
[1673451902489,74.84844404,15.448,15.426,132.4213]
[1673451902696,20.0,15.447,15.426,132.4213]
[1673451902905,87.70496728,15.447,15.426,132.4213]
[1673451903328,0.96,15.446,15.426,132.4213]
[1673451903554,87.70496728,15.447,15.426,132.4213]
[1673451903757,48.57,15.445,15.426,132.4213]
[1673451903973,48.57,15.446,15.426,132.4213]
[1673451904191,48.57,15.444,15.427,1.92]
[1673451904505,48.57,15.445,15.427,1.92]
[1673451904712,48.57,15.446,15.427,1.92]
[1673451904905,48.57,15.444,15.427,1.92]
[1673451905114,48.57,15.446,15.427,34.17782182]
[1673451905327,20.0,15.447,15.427,34.17782182]
[1673451905328,20.0,15.447,15.428,20.0]
[1673451905535,48.57,15.445,15.429,1.92]
[1673451905754,48.57,15.446,15.428,35.25782182]
[1673451905969,48.57,15.444,15.426,132.4213]
[1673451906188,39.14496728,15.448,15.426,112.4213]
[1673451906189,48.57,15.445,15.426,112.4213]
[1673451906379,48.58,15.443,15.426,112.4213]
[1673451906712,48.57,15.444,15.426,112.4213]
[1673451906902,23.82,15.44,15.426,112.4213]
[1673451907442,23.82,15.44,15.417,20.0]
[1673451907443,20.0,15.438,15.417,20.0]
[1673451907638,68.69496728,15.439,15.421,108.2402]
[1673451907968,48.59,15.437,15.421,108.2402]
[1673451908174,48.59,15.438,15.421,108.2402]
[1673451908392,48.59,15.439,15.422,20.0]
[1673451908700,48.59,15.437,15.422,20.0]
[1673451908910,20.0,15.438,15.422,20.0]